bitfinex-derivatives/quotes_ETHF0:USTF0_20250712
["timestamp","ask_amount","ask_price","bid_price","bid_amount"]
[1752298201934,1.74375,2951.8,2951.7,1.5584]
[1752298202528,1.74375,2951.8,2951.7,2.4645]
[1752298202729,2.67688731,2951.8,2951.7,0.9061]
[1752298203526,1.74375,2951.8,2951.7,1.5523]
[1752298203737,0.9285,2951.8,2951.7,2.4645]
[1752298203939,4.95146,2952.2,2952.1,2.4645]
[1752298204936,0.67712,2952.4,2952.3,1.5523]
[1752298205233,0.67712,2952.4,2952.3,3.31133731]
[1752298205429,0.67712,2952.4,2952.3,2.4645]
[1752298205830,4.81339,2952.5,2952.3,1.32332]
[1752298206034,4.81339,2952.5,2952.4,2.4645]
[1752298206336,3.2078,2952.5,2952.4,3.31133731]
[1752298206830,3.88489,2952.5,2952.4,3.31133731]
[1752298207431,3.2078,2952.5,2952.4,3.98844731]
[1752298207632,1.61063362,2952.7,2952.6,1.5523]
[1752298207826,0.93358362,2952.7,2952.6,3.14156]
[1752298208031,0.00508362,2952.7,2952.6,3.98839731]
[1752298208934,0.00508362,2952.7,2952.6,3.31133731]
[1752298209234,0.00508362,2952.7,2952.6,3.98839731]
[1752298212335,3.2078,2953.1,2953.0,3.14147]
[1752298212930,3.88475,2953.1,2953.0,2.4645]
[1752298213441,3.2078,2953.1,2953.0,2.4645]
[1752298213937,3.2078,2953.1,2953.0,3.14147]
[1752298214139,3.88475,2953.1,2953.0,2.4645]
[1752298215041,0.67695,2953.1,2953.0,2.4645]
[1752298215837,1.81795,2953.1,2953.0,1.5523]
[1752298216038,2.66478731,2953.1,2953.0,0.9061]
[1752298216236,2.66478731,2953.1,2953.0,1.5436]
[1752298217140,1.81795,2953.1,2953.0,1.5436]
[1752298218746,1.81795,2953.1,2953.0,2.521]
[1752298219247,0.67695,2953.1,2953.0,2.521]
[1752298219545,0.67695,2953.1,2953.0,3.36783731]
[1752298219741,0.67695,2953.1,2953.0,4.04480731]
[1752298219949,1.67123,2953.2,2953.1,2.5636]
[1752298221445,1.67123,2953.2,2953.1,3.24055]
[1752298221647,1.67123,2953.2,2953.1,2.5636]
[1752298225552,4.89992,2953.6,2953.1,2.5636]
[1752298225746,1.81786,2953.5,2953.4,1.5862]
[1752298225951,1.81786,2953.5,2953.4,2.5636]
[1752298227053,1.81786,2953.5,2953.4,1.5862]
[1752298231060,1.81786,2953.5,2953.4,2.5636]
[1752298232659,5.02566,2953.5,2953.4,2.5636]
[1752298234053,3.2078,2953.5,2953.4,2.5636]
[1752298234255,0.00508362,2953.7,2953.6,3.24043]
[1752298234558,0.00508362,2953.7,2953.6,4.08726731]
[1752298236349,3.2078,2954.1,2954.0,0.67674]
[1752298236557,3.2078,2954.1,2954.0,3.24034]
[1752298237260,1.67101,2954.2,2954.1,1.31422]
[1752298237457,1.67101,2954.2,2954.1,3.24032]
[1752298237657,0.9943,2954.2,2954.1,3.24032]
[1752298238159,4.87876,2954.4,2954.3,2.5636]
[1752298238360,5.02776,2954.4,2954.3,2.5636]
[1752298241866,4.3511,2954.4,2954.3,3.24027]
[1752298242060,5.02775,2954.4,2954.3,2.5636]
[1752298242662,5.02775,2954.4,2954.3,3.24027]
[1752298242856,4.2021,2954.4,2954.3,3.24027]
[1752298243063,3.2078,2954.4,2954.3,3.24027]
[1752298243764,3.88445,2954.4,2954.3,3.24027]
[1752298243962,4.87875,2954.4,2954.3,3.24027]
[1752298244164,0.9943,2954.4,2954.3,3.24027]
[1752298244770,1.67095,2954.4,2954.3,3.24027]
[1752298245474,0.67664,2954.5,2954.4,0.67664]
[1752298245777,0.67666,2954.4,2954.3,3.13967]
[1752298246078,1.63714,2954.5,2954.4,2.463]
[1752298246969,1.63714,2954.5,2954.4,3.13965]
[1752298247169,1.63714,2954.5,2954.4,2.463]
[1752298247377,1.63714,2954.5,2954.4,3.13965]
[1752298247771,0.9605,2954.5,2954.4,3.98648731]
[1752298247971,1.63713,2954.5,2954.4,3.98648731]
[1752298248376,0.9605,2954.5,2954.4,3.98648731]
[1752298248675,1.6371,2954.7,2954.6,1.2958]
[1752298248875,1.6371,2954.7,2954.6,2.463]
[1752298249273,0.9605,2954.9,2954.6,2.69063731]
[1752298249472,1.79184,2954.9,2954.8,2.463]
[1752298250376,1.79184,2954.9,2954.8,3.13956]
[1752298250574,1.79184,2954.9,2954.8,2.463]
[1752298251678,1.79184,2954.9,2954.8,3.13956]
[1752298251980,1.79184,2954.9,2954.8,2.463]
[1752298252283,1.79184,2954.9,2954.8,3.13956]
[1752298252472,0.9605,2954.9,2954.8,3.13956]
[1752298252885,1.63704,2954.9,2954.8,3.13956]
[1752298253979,1.63704,2954.9,2954.8,3.98639731]
[1752298253980,0.9605,2954.9,2954.8,3.98639731]
[1752298254179,0.9605,2955.2,2955.0,0.6192]
[1752298254380,0.9605,2955.2,2955.1,3.98632731]
[1752298255280,0.1548,2955.4,2955.3,2.22544]
[1752298255480,0.83123,2955.4,2955.3,2.463]
[1752298255674,0.83123,2955.4,2955.3,1.5332]
[1752298255873,1.79173,2955.4,2955.3,1.5332]
[1752298259284,1.88823,2955.4,2955.3,0.914]
[1752298259585,1.88823,2955.4,2955.3,1.5332]
[1752298259786,1.79173,2955.4,2955.3,2.463]
[1752298260182,1.79173,2955.4,2955.3,3.13944]
[1752298260383,1.79173,2955.4,2955.3,2.463]
[1752298260881,1.79173,2955.4,2955.3,1.5332]
[1752298261278,1.79173,2955.4,2955.3,2.463]
[1752298262288,1.79151,2955.0,2954.9,5.67588362]
[1752298262587,1.79151,2955.0,2954.9,2.46808362]
[1752298263282,1.88801,2955.0,2954.9,0.91908362]
[1752298264588,1.88801,2955.0,2954.9,1.53828362]
[1752298264790,1.79151,2955.0,2954.9,1.53828362]
[1752298264984,1.79151,2955.0,2954.9,2.46808362]
[1752298265384,1.79151,2955.0,2954.9,1.53828362]
[1752298265888,1.63701,2955.0,2954.9,3.99146093]
[1752298266380,3.3043,2955.5,2955.0,0.9298]
[1752298266381,0.9605,2955.3,2955.0,0.9298]
[1752298266586,4.0387,2955.5,2955.4,0.6192]
[1752298266781,4.0387,2955.5,2955.4,1.5332]
[1752298267182,4.9992,2955.5,2955.4,1.5332]
[1752298269790,4.9992,2955.5,2955.4,2.463]
[1752298270190,4.9992,2955.5,2955.4,1.5332]
[1752298271287,4.9992,2955.5,2955.4,2.463]
[1752298272182,4.8447,2955.5,2955.4,2.463]
[1752298272384,0.6764,2955.6,2955.5,1.2956]
[1752298272589,1.6369,2955.6,2955.5,2.463]
[1752298272787,1.7914,2955.6,2955.5,2.463]
[1752298272991,1.6369,2955.6,2955.5,3.1394]
[1752298273192,1.6369,2955.6,2955.5,2.463]
[1752298273989,1.7914,2955.6,2955.5,2.463]
[1752298275396,1.7914,2955.6,2955.5,3.1394]
[1752298275598,1.6369,2955.6,2955.5,3.1394]
[1752298275793,7.0778,2956.1,2955.7,2.5078]
[1752298276000,7.75406,2956.1,2956.0,2.43593731]
[1752298276298,2.57154881,2956.1,2956.0,3.35463731]
[1752298276495,2.72604881,2956.1,2956.0,2.5078]
[1752298276695,2.72604881,2956.1,2956.0,1.5508]
[1752298276896,1.75426,2956.1,2956.0,1.5508]
[1752298277796,3.2078,2956.2,2955.4,1.5508]
[1752298277797,1.5999,2955.5,2955.4,1.5508]
[1752298277989,0.9235,2955.5,2955.4,2.22722]
[1752298278195,1.75426,2956.1,2956.0,0.6321]
[1752298278396,1.75426,2956.1,2956.0,2.5078]
[1752298278595,1.75426,2956.1,2956.0,3.35463731]
[1752298278800,1.59976,2956.1,2956.0,3.35463731]
[1752298279200,1.59976,2956.1,2956.0,4.03091731]
[1752298279401,0.67626,2956.1,2956.0,4.03091731]
[1752298280301,1.59973,2956.3,2956.2,1.5891]
[1752298280498,1.59973,2956.3,2956.2,3.35463731]
[1752298282903,1.59973,2956.3,2956.2,4.03087731]
[1752298283096,1.75423,2956.3,2956.2,2.5078]
[1752298287604,0.67635,2955.8,2955.7,2.5078]
[1752298287805,1.59985,2955.8,2955.7,2.5078]
[1752298288005,1.75435,2955.8,2955.7,2.5078]
[1752298289602,1.75435,2955.8,2955.7,1.5508]
[1752298290206,1.75435,2955.8,2955.7,2.5078]
[1752298290814,1.59985,2955.8,2955.7,3.35463731]
[1752298291107,0.67635,2955.8,2955.7,3.35463731]
[1752298291505,0.67632,2955.9,2955.8,3.18411]
[1752298293012,0.67632,2955.9,2955.8,2.5078]
[1752298293206,1.75432,2955.9,2955.8,1.5508]
[1752298293405,1.85082,2955.9,2955.8,1.5508]
[1752298293806,1.75721391,2955.9,2955.8,1.5508]
[1752298294914,1.75721391,2955.9,2955.8,2.5078]
[1752298296413,1.75721391,2955.9,2955.8,1.5508]
[1752298296915,1.08089391,2955.9,2955.8,2.5078]
[1752298297114,1.60270391,2955.9,2955.8,2.5078]
[1752298297315,1.75720391,2955.9,2955.8,2.5078]
[1752298298417,1.75720391,2955.9,2955.8,3.18413]
[1752298298713,1.75720391,2955.9,2955.8,2.5078]
[1752298299816,1.60270391,2955.9,2955.8,3.18413]
[1752298300613,1.60270391,2955.9,2955.8,2.5078]
[1752298301716,0.67920391,2955.9,2955.8,3.18413]
[1752298302014,1.60270391,2955.9,2955.8,3.18413]
[1752298302422,1.60270391,2955.9,2955.8,2.5078]
[1752298303018,1.60270391,2955.9,2955.8,3.18413]
[1752298304624,2.70044122,2955.9,2955.8,0.9187]
[1752298304922,0.83072,2955.4,2955.3,2.4586]
[1752298305217,0.83072,2955.4,2954.9,1.69640362]
[1752298305218,1.85311,2955.0,2954.9,0.00508362]
[1752298305420,5.06091,2955.0,2954.9,0.00508362]
[1752298305615,4.96451,2955.0,2954.9,1.50668362]
[1752298305811,4.96451,2955.0,2954.9,2.45578362]
[1752298306115,4.96451,2955.0,2954.9,3.30262093]
[1752298306309,1.75671,2955.0,2954.9,2.45578362]
[1752298307314,1.60241,2955.0,2954.9,2.45578362]
[1752298307613,4.1337,2955.3,2955.1,0.9491]
[1752298307819,0.67649,2955.2,2955.1,1.62559]
[1752298308019,4.1337,2955.3,2955.2,1.5467]
[1752298308218,4.81014,2955.3,2955.2,1.5467]
[1752298308414,4.81014,2955.3,2955.2,2.4507]
[1752298308814,4.288,2955.7,2955.6,0.5976]
[1752298309016,4.96435,2955.7,2955.6,1.5016]
[1752298309212,4.96435,2955.7,2955.6,2.4507]
[1752298309821,4.96435,2955.7,2955.6,1.5016]
[1752298312227,3.2078,2955.7,2955.6,3.12708]
[1752298312826,4.16008909,2955.7,2955.6,3.12708]
[1752298313027,1.62863909,2955.7,2955.6,3.12708]
[1752298313424,0.95228909,2955.7,2955.6,3.12708]
[1752298313619,1.87818909,2955.7,2955.6,3.12708]
[1752298314026,2.55453909,2955.7,2955.6,2.4507]
[1752298314226,2.70883909,2955.7,2955.6,2.4507]
[1752298314526,1.87818909,2955.7,2955.6,3.12708]
[1752298314726,2.55453909,2955.7,2955.6,2.4507]
[1752298315127,1.60225,2955.7,2955.6,2.4507]
[1752298315731,1.75655,2955.7,2955.6,2.4507]
[1752298320136,1.75655,2955.7,2955.6,1.5016]
[1752298320333,1.75662,2955.4,2955.3,1.5016]
[1752298320733,1.85302,2955.4,2955.3,0.904]
[1752298320929,1.8454,2955.4,2955.0,0.5976]
[1752298321133,1.85309,2955.1,2955.0,0.5976]
[1752298321334,0.67651,2955.0,2954.9,0.00508362]
[1752298321534,1.75671,2955.0,2954.9,1.50668362]
[1752298322232,1.0802,2955.0,2954.9,2.18322362]
[1752298322736,1.75671,2955.0,2954.9,2.45578362]
[1752298322936,1.75671,2955.0,2954.9,1.50668362]
[1752298323837,1.75671,2955.0,2954.9,2.18322362]
[1752298324739,1.85261,2955.0,2954.9,0.90908362]
[1752298326340,1.75671,2955.0,2954.9,1.50668362]
[1752298327143,1.75671,2955.0,2954.9,2.18322362]
[1752298327444,1.75671,2955.0,2954.9,1.50668362]
[1752298328339,1.75671,2955.0,2954.9,2.18322362]
[1752298329348,1.0802,2955.0,2954.9,2.18322362]
[1752298329848,1.0802,2955.0,2954.9,3.13232362]
[1752298330146,0.9259,2955.0,2954.9,3.13232362]
[1752298330849,0.9259,2955.0,2954.9,3.97868649]
[1752298333345,1.0794,2955.0,2954.9,3.13232362]
[1752298337150,1.75591,2955.0,2954.9,3.13232362]
[1752298337345,1.0794,2955.0,2954.9,3.13232362]
[1752298342052,0.9259,2955.0,2954.9,3.13232362]
[1752298343160,1.0743,2955.0,2954.9,3.13232362]
[1752298345053,0.6091,2954.1,2954.0,1.6131]
[1752298345262,1.5335,2954.1,2954.0,2.28984]
[1752298345660,2.21022,2954.1,2954.0,1.6131]
[1752298346263,0.3807,2954.7,2954.0,3.8306]
[1752298346466,1.60109,2954.3,2954.2,2.45946287]
[1752298347163,1.60109,2954.3,2954.2,3.38276287]
[1752298348565,0.9244,2954.3,2954.2,4.05946287]
[1752298348864,1.5335,2954.5,2954.4,2.5364]
[1752298349062,4.40764064,2955.1,2954.4,3.38276287]
[1752298349274,0.67657,2954.8,2954.7,0.6228]
[1752298349463,0.67657,2954.8,2954.7,3.38276287]
[1752298349665,0.9244,2955.0,2954.9,2.5364]
[1752298349961,2.55839211,2955.0,2954.9,2.5364]
[1752298350166,2.55839211,2955.0,2954.9,3.21294]
[1752298350564,2.55839211,2955.0,2954.9,4.05930287]
[1752298350867,2.21008,2954.7,2954.6,0.6228]
[1752298351263,2.59078,2954.7,2954.6,0.6228]
[1752298351463,2.59078,2954.7,2954.6,1.5461]
[1752298353877,2.59078,2954.7,2954.6,0.9233]
[1752298354070,2.59078,2954.7,2954.6,1.5461]
[1752298355668,2.21008,2954.7,2954.6,1.5461]
[1752298355964,2.21008,2954.7,2954.6,2.5364]
[1752298356666,1.60098,2954.7,2954.6,2.5364]
[1752298356872,0.67657,2954.8,2954.7,1.6131]
[1752298357073,0.67657,2954.8,2954.7,3.06904287]
[1752298357263,0.67655,2954.9,2954.8,1.29936]
[1752298357469,1.60095,2954.9,2954.8,2.5364]
[1752298358274,0.9244,2954.9,2954.8,3.21296]
[1752298359174,1.60094,2954.9,2954.8,3.21296]
[1752298360375,1.60094,2954.9,2954.8,2.5364]
[1752298360576,2.05994,2954.9,2954.8,2.5364]
[1752298360877,2.05994,2954.9,2954.8,1.5461]
[1752298362779,2.05994,2954.9,2954.8,3.21296]
[1752298363078,2.05994,2954.9,2954.8,2.5364]
[1752298364686,2.05994,2954.9,2954.8,3.21296]
[1752298366286,2.05994,2954.9,2954.8,2.5364]
[1752298367489,2.05994,2954.9,2954.8,2.5141]
[1752298371793,2.06211117,2954.9,2954.8,2.5141]
[1752298377788,1.60311117,2954.9,2954.8,3.36046287]
[1752298379899,1.60311117,2954.9,2954.8,2.5141]
[1752298380400,3.03095772,2954.9,2954.8,1.5461]
[1752298380596,3.32115772,2954.9,2954.8,1.5461]
[1752298381997,3.32115772,2954.9,2954.8,0.9233]
[1752298382199,1.60355,2954.4,2954.3,3.19716]
[1752298382796,2.06895,2954.4,2954.3,2.5205]
[1752298382997,2.06895,2954.4,2954.3,3.19717]
[1752298383194,1.3923,2954.4,2954.3,3.19717]
[1752298383391,0.9269,2954.4,2954.3,3.19717]
[1752298384096,0.67664,2954.5,2954.4,0.67665]
[1752298384400,0.67664,2954.5,2954.4,4.04351287]
[1752298384602,1.60354,2954.5,2954.4,4.04351287]
[1752298387304,0.67662,2954.6,2954.5,2.27511]
[1752298387503,0.67662,2954.6,2954.5,3.19711]
[1752298387704,4.1347,2954.8,2954.6,2.56659]
[1752298387705,0.6766,2954.7,2954.6,2.56659]
[1752298387900,1.6035,2954.7,2954.6,3.36686287]
[1752298389102,2.0689,2954.7,2954.6,2.5205]
[1752298389702,1.13985,2954.4,2954.3,0.6305]
[1752298389896,2.06675,2954.4,2954.3,0.6305]
[1752298390206,2.06675,2954.4,2954.3,1.5525]
[1752298390401,2.35625,2954.4,2954.3,0.922]
[1752298390802,1.13994,2954.0,2953.9,49.703]
[1752298391008,2.06684,2954.0,2953.9,2.5205]
[1752298391208,2.35634,2954.0,2953.9,1.5525]
[1752298392608,2.06684,2954.0,2953.9,1.5525]
[1752298393202,2.06684,2954.0,2953.9,0.922]
[1752298393409,2.06693,2953.6,2953.5,6.39314]
[1752298393707,2.06693,2953.6,2953.5,5.7163]
[1752298394306,2.06693,2953.6,2953.5,6.39316]
[1752298396604,2.06693,2953.6,2953.5,5.7163]
[1752298396808,1.62268,2953.9,2953.8,2.5088]
[1752298397007,1.62268,2953.9,2953.8,3.35516287]
[1752298397513,4.83042,2954.2,2954.1,2.5088]
[1752298397713,4.83042,2954.2,2954.1,3.35516287]
[1752298397914,0.67672,2954.2,2954.1,4.03188287]
[1752298398809,1.62262,2954.2,2954.1,3.35516287]
[1752298400312,1.62262,2954.2,2954.1,4.03188287]
[1752298400514,1.62262,2954.2,2954.1,3.35516287]
[1752298400713,2.09422,2954.2,2954.1,3.35516287]
[1752298401115,2.09422,2954.2,2954.1,4.03188287]
[1752298401315,0.9459,2954.2,2954.1,4.03188287]
[1752298401518,2.09416,2954.4,2954.3,0.6413]
[1752298401719,2.09416,2954.4,2954.3,2.5088]
[1752298403417,2.09416,2954.4,2954.3,3.18547]
[1752298403718,2.09416,2954.4,2954.3,2.5088]
[1752298405019,2.09415,2954.4,2954.3,3.18547]
[1752298405528,0.67662,2954.6,2954.4,2.5088]
[1752298405721,0.67662,2954.6,2954.5,3.35516287]
[1752298405722,1.62252,2954.6,2954.5,3.35516287]
[1752298407619,2.09412,2954.6,2954.5,3.35516287]
[1752298407820,2.09412,2954.6,2954.5,4.03179287]
[1752298408123,2.09412,2954.6,2954.5,3.35516287]
[1752298408517,2.09412,2954.6,2954.5,4.03179287]
[1752298408918,3.2078,2954.8,2954.7,2.27538]
[1752298409222,1.62461117,2954.9,2954.8,3.18536]
[1752298409923,0.67871117,2954.9,2954.8,3.18536]
[1752298410221,0.00217117,2954.9,2954.8,3.18536]
[1752298411326,0.9459,2955.3,2955.2,1.31777]
[1752298411524,0.9459,2955.3,2955.2,3.18527]
[1752298411717,3.2078,2955.4,2955.1,0.84636287]
[1752298411718,3.2078,2955.4,2955.3,3.18524]
[1752298411916,4.83012,2955.4,2955.3,3.18524]
[1752298412117,4.83012,2955.4,2955.3,4.03160287]
[1752298413028,4.83012,2955.4,2955.3,3.35516287]
[1752298413323,5.30172,2955.4,2955.3,3.35516287]
[1752298417024,0.67639,2955.6,2955.5,1.5988]
[1752298417225,0.67639,2955.6,2955.5,4.03156287]
[1752298417524,4.83007,2955.7,2955.6,2.5088]
[1752298418617,5.30167,2955.7,2955.6,2.5088]
[1752298419022,5.30167,2955.7,2955.6,1.5513]
[1752298419822,5.30167,2955.7,2955.6,2.5088]
[1752298420723,5.59327,2955.7,2955.6,0.91]
[1752298420922,5.59327,2955.7,2955.6,1.5513]
[1752298422022,5.59327,2955.7,2955.6,0.91]
[1752298422217,2.09397,2955.2,2955.1,2.5088]
[1752298422415,2.38557,2955.2,2955.1,1.5513]
[1752298422922,1.14816,2954.8,2954.7,3.35516287]
[1752298423121,2.09406,2954.8,2954.7,3.35516287]
[1752298423321,2.09406,2954.8,2954.7,1.5513]
[1752298424822,0.4706,2954.6,2954.5,0.6606]
[1752298425013,2.0931,2954.6,2954.5,1.5707]
[1752298425414,2.3802,2954.6,2954.5,1.5707]
[1752298425818,2.10717,2954.3,2954.2,2.5261]
[1752298428029,2.10717,2954.3,2954.2,3.37246287]
[1752298428625,2.10717,2954.3,2954.2,2.5261]
[1752298429224,2.39427,2954.3,2954.2,0.9101]
[1752298429821,2.39427,2954.3,2953.9,1.5707]
[1752298429822,2.10724,2954.0,2953.9,1.5707]
[1752298430525,2.10724,2954.0,2953.9,0.9101]
[1752298430727,2.39434,2954.0,2953.9,0.9101]
[1752298430926,2.39434,2954.0,2953.9,1.5707]
[1752298431929,2.10724,2954.0,2953.9,1.5707]
[1752298432325,2.39434,2954.0,2953.9,0.9101]
[1752298432527,1.4305,2953.7,2953.6,1.5707]
[1752298432729,2.10731,2953.7,2953.6,1.5707]
[1752298434130,2.10731,2953.7,2953.6,2.5261]
[1752298434833,2.10731,2953.7,2953.6,3.37246287]
[1752298438430,3.2078,2953.9,2953.8,1.33739]
[1752298438632,3.2078,2953.9,2953.8,4.04925287]
[1752298438937,3.2078,2953.9,2953.8,3.37246287]
[1752298438938,0.67676,2953.9,2953.8,3.37246287]
[1752298439230,0.67676,2953.9,2953.8,4.04925287]
[1752298439435,0.67676,2953.9,2953.8,3.37246287]
[1752298440034,0.67676,2953.9,2953.8,4.04925287]
[1752298440434,0.67676,2953.9,2953.8,3.37246287]
[1752298440636,1.63666,2953.9,2953.8,3.37246287]
[1752298441029,2.10726,2953.9,2953.8,3.37246287]
[1752298441233,2.10726,2953.9,2953.8,0.9101]
[1752298441234,2.39436,2953.9,2953.8,0.9101]
[1752298442533,2.10733,2953.6,2953.5,1.5707]
[1752298443139,2.10733,2953.6,2953.5,2.5261]
[1752298444530,3.4949,2954.1,2953.5,3.20296]
[1752298444729,4.35512,2954.1,2954.0,3.37246287]
[1752298445033,0.67672,2954.1,2954.0,3.37246287]
[1752298445635,0.67672,2954.1,2954.0,4.04920287]
[1752298445834,1.63662,2954.1,2954.0,3.37246287]
[1752298447937,1.63662,2954.1,2954.0,4.04920287]
[1752298448835,3.2078,2954.4,2954.0,4.04920287]
[1752298448836,1.63655,2954.4,2954.3,2.5261]
[1752298449734,2.10715,2954.4,2954.3,2.5261]
[1752298451237,2.10715,2954.4,2954.3,0.9101]
[1752298451439,2.39425,2954.4,2954.3,0.9101]
[1752298451640,0.67672,2954.1,2954.0,0.67673]
[1752298451842,2.10722,2954.1,2954.0,1.5707]
[1752298452040,2.39432,2954.1,2954.0,0.9101]
[1752298452242,2.10726,2953.9,2953.8,1.5707]
[1752298452541,2.39436,2953.9,2953.8,0.9101]
[1752298454241,2.10726,2953.9,2953.8,2.5261]
[1752298459648,4.35025,2954.4,2954.3,0.6443]
[1752298459846,4.35025,2954.4,2954.3,1.544]
[1752298460338,5.27285,2954.4,2954.3,1.544]
[1752298460742,5.27285,2954.4,2954.3,2.4439]
[1752298461550,1.59925,2954.4,2954.3,2.4439]
[1752298461746,3.2078,2954.7,2954.3,1.49066287]
[1752298461946,0.97539719,2954.6,2954.5,2.16727287]
[1752298462248,3.2078,2954.7,2954.5,2.16727287]
[1752298462249,3.8844,2954.7,2954.6,1.3209]
[1752298462446,4.85957421,2954.7,2954.6,3.1205]
[1752298462949,4.85957421,2954.7,2954.6,2.4439]
[1752298463150,5.78217421,2954.7,2954.6,2.4439]
[1752298463453,4.80698,2954.7,2954.6,2.4439]
[1752298463650,2.06498,2954.7,2954.6,2.4439]
[1752298466648,0.9226,2954.7,2954.6,2.4439]
[1752298466849,0.67653,2955.0,2954.8,0.6443]
[1752298467048,3.2078,2955.2,2955.1,0.6443]
[1752298467247,4.8587406,2955.2,2955.1,2.4439]
[1752298467748,5.7813406,2955.2,2955.1,2.4439]
[1752298468550,2.5735406,2955.2,2955.1,2.4439]
[1752298468849,1.6509406,2955.2,2955.1,3.12039]
[1752298469050,0.67647,2955.2,2955.1,3.12039]
[1752298469551,0.67647,2955.2,2955.1,2.4439]
[1752298470152,0.67647,2955.2,2955.1,3.12039]
[1752298470350,0.67647,2955.2,2955.1,2.4439]
[1752298472951,2.06487,2955.2,2955.1,2.4439]
[1752298474255,2.06487,2955.2,2955.1,0.8997]
[1752298474450,2.06487,2955.2,2955.1,1.544]
[1752298474652,0.67658,2954.7,2954.6,6.32829]
[1752298474851,1.59918,2954.7,2954.6,5.6517]
[1752298475057,2.06498,2954.7,2954.6,6.3283]
[1752298475255,0.67658,2954.7,2954.6,6.3283]
[1752298476658,0.67658,2954.7,2954.6,5.6517]
[1752298476857,0.67658,2954.7,2954.6,6.3283]
[1752298480155,0.67657,2954.8,2954.7,2.22057]
[1752298480454,0.9226,2954.9,2954.8,0.67656]
[1752298480455,1.59915,2954.9,2954.8,0.67656]
[1752298480657,1.59911,2955.1,2955.0,1.5442]
[1752298480858,1.59911,2955.1,2955.0,3.12041]
[1752298481154,3.2078,2955.2,2955.0,2.4439]
[1752298481360,3.88428,2955.2,2955.1,3.12039]
[1752298481762,1.59906,2955.3,2955.2,1.32077]
[1752298481956,1.59906,2955.3,2955.2,3.12037]
[1752298482355,3.88418,2955.6,2955.5,0.6443]
[1752298482551,5.7787911,2955.6,2955.5,2.4439]
[1752298482756,5.1024111,2955.6,2955.5,3.1203]
[1752298483057,5.7787911,2955.6,2955.5,3.1203]
[1752298483758,4.80678,2955.6,2955.5,3.1203]
[1752298484163,1.59898,2955.6,2955.5,3.1203]
[1752298484362,1.59898,2955.6,2955.5,2.4439]
[1752298484958,0.9226,2955.6,2955.5,3.1203]
[1752298485166,1.59898,2955.6,2955.5,2.4439]
[1752298485458,2.06478,2955.6,2955.5,2.4439]
[1752298486260,0.67638,2955.6,2955.5,2.4439]
[1752298486566,1.62498,2955.6,2955.5,2.4439]
[1752298486962,2.08928,2955.6,2955.5,2.4439]
[1752298487161,2.08928,2955.6,2955.5,1.544]
[1752298488069,2.08928,2955.6,2955.5,2.5378]
[1752298490365,0.67638,2955.6,2955.5,3.2142]
[1752298490867,1.62497,2955.7,2955.6,3.29757]
[1752298491068,1.62497,2955.7,2955.6,2.6212]
[1752298491271,1.62497,2955.7,2955.6,3.29758]
[1752298491471,0.9486,2955.7,2955.6,3.29758]
[1752298491766,1.62495,2955.7,2955.6,3.29758]
[1752298492163,3.4943,2956.2,2955.8,0.67633]
[1752298492468,4.63484,2956.2,2956.1,1.6274]
[1752298492657,5.6084481,2956.2,2956.1,1.6274]
[1752298492862,6.5570481,2956.2,2956.1,1.6274]
[1752298493165,6.5570481,2956.2,2956.1,0.968]
[1752298495160,6.5570481,2956.2,2955.7,3.4671306]
[1752298495161,2.08923,2955.8,2955.7,3.4671306]
[1752298495466,2.08923,2955.8,2955.7,2.6212]
[1752298500069,1.62493,2955.8,2955.7,3.29755]
[1752298500368,1.62493,2955.8,2955.7,2.6212]
[1752298500564,3.2078,2956.5,2956.3,0.6594]
[1752298500761,0.97376694,2956.4,2956.3,1.3356]
[1752298500967,0.97376694,2956.4,2956.3,2.1815306]
[1752298501362,2.08902,2956.7,2956.6,2.6212]
[1752298501565,3.06240429,2956.7,2956.6,2.6212]
[1752298501770,2.08902,2956.7,2956.6,2.6212]
[1752298502563,2.08902,2956.7,2956.6,1.6274]
[1752298502765,2.08909,2956.4,2956.3,1.6532]
[1752298503073,0.67633,2955.8,2955.7,4.54355]
[1752298503271,1.62493,2955.8,2955.7,5.3894806]
[1752298503470,0.9486,2955.8,2955.7,6.3574806]
[1752298503770,1.62493,2955.8,2955.7,7.3512806]
[1752298504271,1.62493,2955.8,2955.7,6.6749306]
[1752298504467,2.08923,2955.8,2955.7,2.6212]
[1752298504665,0.9486,2955.8,2955.7,3.4671306]
[1752298504871,1.62493,2955.8,2955.7,3.4671306]
[1752298505463,0.9486,2956.1,2955.8,0.9938]
[1752298505667,0.67631,2955.9,2955.8,2.6212]
[1752298506366,1.62491,2955.9,2955.8,2.6212]
[1752298507478,2.08921,2955.9,2955.8,2.6212]
[1752298508768,2.37571,2955.9,2955.8,1.6274]
[1752298508974,2.08921,2955.9,2955.8,1.6274]
[1752298509474,2.37571,2955.9,2955.8,0.968]
[1752298509873,2.08921,2955.9,2955.8,1.6274]
[1752298510275,2.08921,2955.9,2955.8,2.6212]
[1752298514580,2.08921,2955.9,2955.8,1.6274]
[1752298515182,2.08921,2955.9,2955.8,2.6212]
[1752298516885,1.62491,2955.9,2955.8,2.6212]
[1752298517087,0.67631,2955.9,2955.8,3.29753]
[1752298517285,0.67631,2955.9,2955.8,2.6212]
[1752298517885,0.67631,2955.9,2955.8,3.29753]
[1752298518084,0.67631,2955.9,2955.8,2.6212]
[1752298518785,0.67631,2955.9,2955.8,3.29753]
[1752298518986,0.67631,2955.9,2955.8,2.6212]
[1752298519987,1.64021,2955.9,2955.8,2.6212]
[1752298520386,2.10511,2955.9,2955.8,2.6212]
[1752298521683,1.14141,2955.0,2954.9,2.579]
[1752298521885,1.64041,2955.0,2954.9,3.25554]